Cogmind - Beta 11.1 @@@ ROGUE MODE // 2022.06.24 @ 05:32:43 Player: woegarden Result: Destroyed by G-50 Soldier with Heavy Laser Performance ------------- Evolutions (2) 1000 Regions Visited (6) 1200 Robots Destroyed (25) 125 Value Destroyed (911) 911 Prototype IDs (24) 480 Alien Tech Used (0) 0 Bonus (508) 508 TOTAL SCORE: 4224 Bonus ------- Pacifist 200 High Alert Combat Kills 8 Aligned with FarCom 300 Cogmind --------- Core Integrity 0/550 Matter 186/300 Energy 156/160 System Corruption 0% Temperature Warm (190) Movement Treading (160) Location -8/Materials Parts ------- > --- POWER (1) -------- Light Nuclear Core > --- PROPULSION (3) --- Light Treads Aluminum Leg Aluminum Leg > --- UTILITY (5) ------ Salvage Targeting Computer Target Analyzer > --- WEAPON (2) ------- Heavy Particle Cannon > --- INVENTORY (5) ---- Humpback Core Shielding Supersonic Drone Bay (1/1) Peak State ------------ > --- POWER ------------ Improved Ion Engine > --- PROPULSION ------- Light Treads Aluminum Leg Aluminum Leg > --- UTILITY ---------- Improved Heat Sink Advanced Heat Sink Salvage Targeting Computer Target Analyzer Particle Charger > --- WEAPON ----------- Beam Rifle Heavy Laser > --- INVENTORY -------- Humpback Core Shielding Supersonic Drone Bay Heavy Particle Cannon [Rating: 28] Favorites ----------- Power Improved Ion Engine Engine Improved Ion Engine Power Core Light Nuclear Core Propulsion Aluminum Leg Treads Light Treads Leg Aluminum Leg Wheel Compact Wheel Hover Unit Hover Unit Utility Salvage Targeting Computer Device Advanced Heat Sink Storage Small Storage Unit Processor Salvage Targeting Computer Protection Insulated Plating Weapon Autogun Energy Gun Heavy Laser Energy Cannon Heavy Particle Cannon Ballistic Gun Autogun Launcher Mini Grenade Launcher Build | -11 -10 -9 -9 -9 -8 -8 ------- Run | Scr Mat Mat Min Exi Min Mat Slots Evolved 4 | . . 2 . . . 2 Power . | . . . . . . . Propulsion 1 | . . . . . . 1 Utility 3 | . . 2 . . . 1 Weapon . | . . . . . . . Parts Attached 42 | . . 15 . 1 . 26 Power 8 | . . 3 . . . 5 Engine 7 | . . 3 . . . 4 Core 1 | . . . . . . 1 Reactor . | . . . . . . . Propulsion 13 | . . 4 . 1 . 8 Treads 2 | . . . . . . 2 Leg 8 | . . 2 . . . 6 Wheel 2 | . . 1 . 1 . . Hover 1 | . . 1 . . . . Flight . | . . . . . . . Utility 12 | . . 5 . . . 7 Device 5 | . . 1 . . . 4 Storage 1 | . . 1 . . . . Processor 4 | . . 2 . . . 2 Hackware . | . . . . . . . Protection 2 | . . 1 . . . 1 Artifact . | . . . . . . . Weapon 9 | . . 3 . . . 6 Energy Gun 4 | . . . . . . 4 Energy Cannon 1 | . . . . . . 1 Ballistic Gun 2 | . . 2 . . . . Ballistic Cannon . | . . . . . . . Launcher 2 | . . 1 . . . 1 Special Weapon . | . . . . . . . Impact Weapon . | . . . . . . . Slashing Weapon . | . . . . . . . Piercing Weapon . | . . . . . . . Special Melee Weapon . | . . . . . . . Unidentified Prototypes 1 | . . . . . . 1 Parts Lost 27 | . . 9 . . 1 17 Power 4 | . . 3 . . . 1 Propulsion 10 | . . 4 . . . 6 Utility 7 | . . 2 . . . 5 Weapon 6 | . . . . . 1 5 Highest Loss Streak 10 | . . 4 . . 1 10 To Critical Strikes . | . . . . . . . Average Slot Usage (%) 64 | . 85 63 55 58 54 73 Engine 4 | . 14 7 . . . 6 Leg 6 | . 28 11 . . . 8 Wheel 4 | . . 1 . 5 11 3 Device 4 | . . 3 . . . 11 Storage 7 | . 14 4 11 11 11 3 Processor 16 | . . 16 22 19 11 20 Energy Gun 4 | . 14 1 . . . 11 Ballistic Gun 7 | . 14 8 11 11 10 . Launcher 6 | . . 6 11 11 10 . Naked Turns . | . . . . . . . Heaviest Build 23 | 13 13 17 9 9 9 23 Greatest Support 20 | 20 20 20 3 16 16 20 Greatest Overweight (x) 6 | . . 4 2 2 . 6 Average Overweight (x) . | . . . 2 . . . Largest Inventory Capacity 8 | . 8 8 8 8 8 8 Average Capacity 7 | . 8 6 8 8 8 6 Most Carried 8 | . 8 8 6 8 8 8 Average Carried 6 | . 6 5 6 6 8 6 Final Capacity 8 | 8 8 8 8 8 8 5 Final Carried 8 | 6 8 6 6 8 8 4 Class Distribution -------------------- 74% | Mutant 25% | Scavenger-Mutant Dominant Class ---------------- Mutant | -10/Materials Scavenger-Mutant | -9/Materials Mutant | -9/Mines Mutant | -9/Exiles Mutant | -8/Mines Scavenger-Mutant | -8/Materials Resources | -11 -10 -9 -9 -9 -8 -8 ----------- Run | Scr Mat Mat Min Exi Min Mat Matter Collected 581 | 200 . 30 . . . 351 Remotely . | . . . . . . . Salvage Created 903 | . . 331 . . . 572 Parts 50 | . . 23 . . . 27 Haulers Intercepted 2 | . . 1 . . . 1 Recyclers Shooed . | . . . . . . . Parts Field Recycled . | . . . . . . . Retrieved Matter . | . . . . . . . Parts Self-Destructed . | . . . . . . . Prevented . | . . . . . . . Kills | -11 -10 -9 -9 -9 -8 -8 ------- Run | Scr Mat Mat Min Exi Min Mat Combat Hostiles Destroyed 20 | . . 9 . . . 11 Guns 8 | . . 4 . . . 4 Cannons 3 | . . . . . . 3 AOE 9 | . . 5 . . . 4 Classes Destroyed 7 | . . 7 . . . . Builder 1 | . . 1 . . . . Tunneler 1 | . . 1 . . . . Hauler 2 | . . 1 . . . 1 Watcher 1 | . . 1 . . . . Grunt 14 | . . 6 . . . 8 Duelist 3 | . . 2 . . . 1 Sentry 3 | . . 1 . . . 2 Best Kill Streak 8 | . . 8 . . . 5 Combat Bots Only 7 | . . 7 . . . 5 Max Kills in Single Turn 3 | . . 2 . . . 3 Gunslinging . | . . . . . . . Exploded 3 | . . 2 . . . 3 Melee . | . . . . . . . Uniques/NPCs Destroyed . | . . . . . . . Combat | -11 -10 -9 -9 -9 -8 -8 -------- Run | Scr Mat Mat Min Exi Min Mat Damage Taken 3010 | . 96 806 . . 115 1993 Core 925 | . 14 274 . . 73 564 Absorbed by Shields 80 | . . . . . . 80 Core Remaining (%) 69 | 100 94 . . . 13 . Volleys Fired 38 | . . 16 . . . 22 Largest 2 | . . 2 . . . 2 Hottest 140 | . . 60 . . . 140 Shots Fired 71 | . . 32 . . 1 38 Gun 46 | . . 17 . . 1 28 Cannon 8 | . . . . . . 8 Launcher 17 | . . 15 . . . 2 Special . | . . . . . . . Kinetic 17 | . . 16 . . 1 . Thermal 36 | . . . . . . 36 Explosive 17 | . . 15 . . . 2 Electromagnetic 1 | . . 1 . . . . Robot Hit Streak 9 | . . 4 . . . 9 Robot Miss Streak 2 | . . 2 . . 1 2 Penetration Max . | . . . . . . . Secondary Targets 1 | . . . . . . 1 Max Gunslinging Chain 1 | . . . . . . 1 Shots Hit Robots 45 | . . 18 . . . 27 Core Hits 53 | . . 26 . . . 27 Critical Kills . | . . . . . . . Critical Parts Destroyed . | . . . . . . . Critical Strikes 2 | . . . . . . 2 Burn 2 | . . . . . . 2 Melee Attacks . | . . . . . . . Impact . | . . . . . . . Slashing . | . . . . . . . Piercing . | . . . . . . . Sneak Attacks . | . . . . . . . Combat Hostiles . | . . . . . . . Follow-up Attacks . | . . . . . . . Damage Inflicted 1887 | . . 979 . . 12 896 Guns 466 | . . 149 . . . 317 Cannons 175 | . . . . . . 175 Explosions 1181 | . . 797 . . . 384 Melee . | . . . . . . . Ramming 65 | . . 33 . . 12 20 Kinetic 149 | . . 149 . . . . Thermal 492 | . . . . . . 492 Explosive 1181 | . . 797 . . . 384 Electromagnetic . | . . . . . . . Impact . | . . . . . . . Slashing . | . . . . . . . Piercing . | . . . . . . . Highest Corruption 2 | . . 2 2 2 2 . Average Corruption 1 | . . 1 2 2 2 . Corruption Purged . | . . . . . . . Corruption Blocked . | . . . . . . . Effects 20 | . . 3 3 7 7 . Message Errors 6 | . . . . 3 3 . Matter Fused 4 | . . 2 1 . 1 . Heat Flow Errors 4 | . . 1 . 2 1 . Energy Discharges 2 | . . . 1 1 . . Parts Rejected 1 | . . . . . 1 . Data Loss (minor) 2 | . . . 1 1 . . Misfires 1 | . . . . . 1 . Overload Shots . | . . . . . . . Overflow Damage 18 | . . 18 . . . . Projectiles . | . . . . . . . Explosions 18 | . . 18 . . . . Melee . | . . . . . . . Knockbacks 1 | . . . . . . 1 Impact 1 | . . . . . . 1 Kinetic . | . . . . . . . Secondary . | . . . . . . . Self-Inflicted Damage 138 | . . 131 . . 4 3 Shots 4 | . . 4 . . . . Rammed 15 | . . 8 . . 4 3 Targets Rammed 18 | . . 8 . . 4 6 Kicked 3 | . . . . . . 3 Crushed . | . . . . . . . Highest Temperature 263 | . 7 239 . 263 73 181 Average Temperature 54 | . 7 42 . 128 45 32 Received Heat Transfer 1439 | . 78 300 . . . 1061 Siege Activations . | . . . . . . . Robots Corrupted . | . . . . . . . Combat Hostiles . | . . . . . . . Parts Fried . | . . . . . . . Impact Corruptions . | . . . . . . . Robots Melted . | . . . . . . . Combat Hostiles . | . . . . . . . Parts Melted 1 | . . . . . . 1 Heat Transferred 1110 | . . . . . . 1110 Parts Sabotaged . | . . . . . . . Parts Stolen . | . . . . . . . Parts Stripped . | . . . . . . . Power Chain Reactions . | . . . . . . . Missiles Intercepted . | . . . . . . . Alert | -11 -10 -9 -9 -9 -8 -8 ------- Run | Scr Mat Mat Min Exi Min Mat Peak Influence 521 | . 24 521 195 . 15 177 Initial 195 | . . 9 195 . . 5 Average 96 | . 16 248 195 . . 62 Maximum Alert Level 2 | . . 2 . . . . Low Security (%) 87 | . 100 39 100 . 100 100 Level 1 6 | . . 31 . . . . Level 2 5 | . . 29 . . . . Level 3 . | . . . . . . . Level 4 . | . . . . . . . Level 5 . | . . . . . . . High Security . | . . . . . . . Max Security . | . . . . . . . Squads Dispatched 6 | . 1 3 . . . 2 Investigation 3 | . 1 1 . . . 1 Extermination . | . . . . . . . Reinforcement 2 | . . 2 . . . . Assault . | . . . . . . . Garrison 1 | . . . . . . 1 Intercept . | . . . . . . . Searches Triggered . | . . . . . . . Construction Impeded . | . . . . . . . Haulers Reinforced . | . . . . . . . Active Scanning Responses . | . . . . . . . Cargo Convoy Interrupts . | . . . . . . . Stealth | -11 -10 -9 -9 -9 -8 -8 --------- Run | Scr Mat Mat Min Exi Min Mat Distress Signals 4 | . . 3 . . . 1 Communications Jammed . | . . . . . . . Distress Signals . | . . . . . . . Times Spotted 47 | . 3 19 . . 4 21 Peak Tracking Total 9 | . 2 9 . . 4 8 Tactical Retreats 4 | . . 1 . . 1 2 Traps | -11 -10 -9 -9 -9 -8 -8 ------- Run | Scr Mat Mat Min Exi Min Mat Traps Triggered . | . . . . . . . Indirectly . | . . . . . . . Trap Hack Attempts . | . . . . . . . Triggered . | . . . . . . . Disarmed . | . . . . . . . Reprogrammed . | . . . . . . . Reused . | . . . . . . . Traps Extracted . | . . . . . . . Installed . | . . . . . . . Triggered . | . . . . . . . Machines | -11 -10 -9 -9 -9 -8 -8 ---------- Run | Scr Mat Mat Min Exi Min Mat Machines Disabled 2 | . . . . . . 2 Max in Single Turn 1 | . . . . . . 1 Machines Sabotaged . | . . . . . . . Garrisons Compromised . | . . . . . . . Overloaded Fab Kills . | . . . . . . . Hacking | -11 -10 -9 -9 -9 -8 -8 --------- Run | Scr Mat Mat Min Exi Min Mat Machines Accessed 11 | . 4 4 . 1 . 2 Terminals 10 | . 4 4 . . . 2 Fabricators . | . . . . . . . Repair Stations . | . . . . . . . Recycling Units . | . . . . . . . Scanalyzers . | . . . . . . . Garrison Access . | . . . . . . . Total Hacks 24 | . 9 10 . 1 . 4 Successful 12 | . 6 3 . 1 . 2 Failed 12 | . 3 7 . . . 2 Catastrophic 1 | . 1 . . . . . Database Lockouts . | . . . . . . . Manual 5 | . 1 2 . 1 . 1 Terminals 23 | . 9 10 . . . 4 Fabricators . | . . . . . . . Repair Stations . | . . . . . . . Recycling Units . | . . . . . . . Scanalyzers . | . . . . . . . Garrison Access . | . . . . . . . Terminal Hacks 12 | . 6 3 . 1 . 2 Record 1 | . . . . . . 1 Branch Access Points 1 | . 1 . . . . . Emergency Access Points 2 | . 1 . . . . 1 Alert Level 1 | . . 1 . . . . Locate Traps 1 | . 1 . . . . . Dispatch Records 1 | . 1 . . . . . Recall Investigation 1 | . . 1 . . . . Registered Components 1 | . 1 . . . . . Zone Layout 2 | . 1 1 . . . . EX-Prototype ID Bank 1 | . . . . 1 . . Fabricator Hacks . | . . . . . . . Repair Station Hacks . | . . . . . . . Recycling Unit Hacks . | . . . . . . . Scanalyzer . | . . . . . . . Garrison Access Hacks . | . . . . . . . Unauthorized Hacks . | . . . . . . . Terminals . | . . . . . . . Fabricators . | . . . . . . . Repair Stations . | . . . . . . . Recycling Units . | . . . . . . . Scanalyzers . | . . . . . . . Garrison Access . | . . . . . . . Data Cores Recovered . | . . . . . . . Used . | . . . . . . . Hacking Detections 9 | . 3 4 . . . 2 Full Trace Events 5 | . 1 3 . . . 1 Feedback Events 1 | . . 1 . . . . Corruption 1 | . . 1 . . . . Feedback Blocked . | . . . . . . . Robot Schematics Acquired . | . . . . . . . Robots Built . | . . . . . . . Authchips . | . . . . . . . Time . | . . . . . . . Total Robot Build Rating . | . . . . . . . Part Schematics Acquired . | . . . . . . . Parts Built . | . . . . . . . Authchips . | . . . . . . . Time . | . . . . . . . Total Part Build Rating . | . . . . . . . Parts Repaired . | . . . . . . . Time . | . . . . . . . Parts Recycled . | . . . . . . . Recycled Matter . | . . . . . . . Retrieved Matter . | . . . . . . . Retrieved Components . | . . . . . . . Parts Scanalyzed . | . . . . . . . Part Schematics Acquired . | . . . . . . . Parts Damaged . | . . . . . . . Bothacking | -11 -10 -9 -9 -9 -8 -8 ------------ Run | Scr Mat Mat Min Exi Min Mat Used RIF Installer . | . . . . . . . Robots Hacked . | . . . . . . . Non-combat . | . . . . . . . Combat . | . . . . . . . Robot Hacks Applied . | . . . . . . . Relay Couplers Released . | . . . . . . . Fabnet Peak Effective % . | . . . . . . . Robots Rewired . | . . . . . . . Allies Hacked . | . . . . . . . Hacks Repelled . | . . . . . . . Allies | -11 -10 -9 -9 -9 -8 -8 -------- Run | Scr Mat Mat Min Exi Min Mat Total Allies . | . . . . . . . Largest Group . | . . . . . . . Highest-Rated Group . | . . . . . . . Highest-Rated Ally . | . . . . . . . Total Orders . | . . . . . . . Ally Attacks . | . . . . . . . Total Damage . | . . . . . . . Kills . | . . . . . . . Allies Corrupted . | . . . . . . . Allies Melted . | . . . . . . . Intel | -11 -10 -9 -9 -9 -8 -8 ------- Run | Scr Mat Mat Min Exi Min Mat Robot Analysis Total . | . . . . . . . Derelict Logs Recovered . | . . . . . . . Drone Launches . | . . . . . . . Drone Recoveries . | . . . . . . . Exploration | -11 -10 -9 -9 -9 -8 -8 ------------- Run | Scr Mat Mat Min Exi Min Mat Turns Passed 2372 | . 198 373 207 512 388 694 Spaces Moved 1862 | 1 164 318 139 428 381 431 Core 442 | . . 121 139 161 . 21 Treads 1 | . . . . . . 1 Legs 532 | 1 164 142 . . . 225 Wheels 832 | . . . . 267 381 184 Hover 55 | . . 55 . . . . Flight . | . . . . . . . Fastest Speed 50 | 120 120 50 150 100 100 50 Average Speed 112 | 120 120 91 150 118 100 116 Slowest Speed 350 | 120 120 250 150 150 100 350 Overloaded Moves . | . . . . . . . Propulsion Burnouts . | . . . . . . . Robots Hopped . | . . . . . . . Cave-ins Triggered . | . . . . . . . Exploration Rate (%) 42 | 1 35 35 35 80 68 40 Regions Visited 6 Branch Regions 3 Pre-discovered Areas . | . . . . . . . Known Exits Taken . | . . . . . . . Unknown Exits Taken 6 | 1 1 1 1 1 1 . Scrap Searched . | . . . . . . . Spaces Dug . | . . . . . . . Terrain Destroyed 111 | . . 94 . . . 17 Melee . | . . . . . . . Projectile 1 | . . . . . . 1 AOE 110 | . . 94 . . . 16 Terrain Rammed . | . . . . . . . Walls Destroyed . | . . . . . . . Machines Disabled . | . . . . . . . Actions | -11 -10 -9 -9 -9 -8 -8 --------- Run | Scr Mat Mat Min Exi Min Mat Total 2066 | . 165 371 138 431 387 574 Wait 80 | . . . . . 3 77 Move 1856 | . 163 317 138 427 380 431 Hop . | . . . . . . . Pick Up 12 | . 2 4 . 2 . 4 Fast Attach 34 | . . 10 . . . 24 Attach 6 | . . 3 . 1 . 2 Detach 2 | . . 2 . . . . Swap 2 | . . 2 . . . . Drop 18 | . . 9 . 1 . 8 Fire 38 | . . 16 . . . 22 Melee . | . . . . . . . Ram 15 | . . 8 . . 4 3 Kick 3 | . . . . . . 3 Crush . | . . . . . . . Escape Stasis . | . . . . . . . Rewire . | . . . . . . . Trap . | . . . . . . . Miscellaneous . | . . . . . . . Route ------- -11/Scrapyard -10/Materials (discovered 3 exits: *Mat / *Min x2) -9/Materials -9/Mines -9/Exiles (discovered 2 exits: [*Min x2]) -8/Mines -8/Materials History --------- Turn | Location | Event 1 | -11/Scrapyard | Discovered new exit (range 0) 1 | -11/Scrapyard | Entered Materials 35 | -10/Materials | Identified exit to Mines 186 | -10/Materials | Discovered new exit (range 11) 199 | -10/Materials | Entered another Materials area 199 | -9/Materials | Evolved 2 slots: Utility x2 305 | -9/Materials | Build established: Mutant 317 | -9/Materials | Lost 3 parts (1p2n) 364 | -9/Materials | Core integrity fell below 50% 385 | -9/Materials | Destroyed 7 combat bots 556 | -9/Materials | Discovered new exit (range 8) 572 | -9/Materials | Entered Mines 597 | -9/Mines | Lost 4 parts (1p2n1u) 772 | -9/Mines | Deemed a non-threat by the Exiles lab entrance 773 | -9/Mines | Discovered new exit (range 5) 779 | -9/Mines | Entered Exiles 799 | -9/Exiles | Discovered new exit (range 17) 820 | -9/Exiles | Met 8R-AWN 841 | -9/Exiles | Met EX-HEX 895 | -9/Exiles | Met EX-DEC 944 | -9/Exiles | Visited The Gauntlet 1087 | -9/Exiles | Discovered new exit (range 10) 1150 | -9/Exiles | Met EX-BIN 1166 | -9/Exiles | Aligned with FarCom system 1167 | -9/Exiles | Given EX-Vault access code 1190 | -9/Exiles | Opened EX-Vault 1198 | -9/Exiles | Found Supersonic Drone Bay 1220 | -9/Exiles | Warned to stay clear of 0b10 Research branches 1291 | -9/Exiles | Left Exiles lab with Supersonic Drone Bay 1291 | -9/Exiles | Entered Mines 1668 | -8/Mines | Discovered new exit (range 12) 1671 | -8/Mines | Core integrity fell below 20% 1679 | -8/Mines | Entered Materials 1679 | -8/Materials | Evolved 2 slots: Propulsion x1, Utility x1 1983 | -8/Materials | Core integrity fell below 50% 2016 | -8/Materials | Lost 7 parts (1p2n2u2w) 2292 | -8/Materials | Build established: Scavenger-Mutant 2295 | -8/Materials | Core integrity fell below 20% 2331 | -8/Materials | Garrison activated, responded to threat 2373 | -8/Materials | Destroyed by G-50 Soldier with Heavy Laser Last Messages --------------- 02319_ Dropped Imp. Ion Engine. 02321_ Acquired Lgt. Nuclear Core. 02321_ Hvy. Laser destroyed. 02323_ G-47 Trooper destroyed. 02325_ Acquired 45 matter. 02328_ Lgt. Treads destroyed. 02329_ Acquired Particle Gun. 02331_ Y-45 Defender calls for garrison reinforcements. 02331_ ALERT: Activating Garrison Access M001. 02333_ Critical hit (Burn: +37). 02334_ Y-45 Defender destroyed. 02336_ Aluminum Leg destroyed. 02340_ Acquired Aluminum Leg. 02345_ Acquired Lgt. Treads. 02349_ Acquired Aluminum Leg. 02353_ Lgt. Nuclear Core melted. 02353_ G-47 Trooper destroyed. 02355_ Hardlight Generator destroyed. 02356_ Adv. Heat Sink destroyed. 02369_ Particle Gun destroyed. Map ----- +----------------------------------------------------+ | ????????????????????????????????????????????? | | ????????????????????????????????????????????? | | ????????????????????????????????????????????? | | ????????????????????????????????????????????? | | ????????????????????????????????????????????? | | ????????????????????????????????????????????? | | ????????????????????????????????????????????? | | ??????????????????????????????H?????????????? | | ????????????????????????????????????????????? | | ????????????????????????????????????????????? | | ????????????????????????????????????????????? | | ????????????????????????????????????????????? | | ????????????????????????????????????????????? | | ????????????????????????????????????????????? | | ?????????????###########????????????????????? | | ?????????????# ! #????????????????????? | | ????????#????# #????????????????????? | | ????????# b??# """ #????????????????????? | | ????????# ?# """ #????????????????????? | | ???????? l # "" #????????????????????? | | ???????# + "T" #????????????????????? | | ???????# # """= #??????? #???????????? | | ???????# ??# "%%! #?????? #???????????? | | ???????# ????#;###+########## #???????????? | | ??????????????# ! * #???????????? | | ??????????????# k%g%! @ #???????????? | | ??????????????# !g= #???????????? | | ??????????????# ###############???????????? | | ???? ???????# #?????????????????????????? | | ???+ ???????# #?????????????????????????? | | ???# ???????# #?????????????????????????? | | ???# ??????# #?????????????????????????? | | ???# """ #?# #?????????????????????????? | | ???# "" #?# #?######??????????????????? | | ???# """ #?# #? !#??????????????????? | | ???# """ #?# # #??????????????????? | | ???# """ #?# # [ #??????????????????? | | ???# " ### + #??????????????????? | | ???# # #??????????????????? | | ???# # #??????????????????? | | ???# " #?######??????????????????? | | +### "" #?????????????????????????? | | "" #?????????????????????????? | | """ #?????????????????????????? | | "" #?????????????????????????? | | #### """ #?????????????????????????? | | ???# """ #?????????????????????????? | | ???# """ #?????????????????????????? | | #### " ###???????????????????????? | | #??????????????????????? | +----------------------------------------------------+ Best States ------------- Heat Dissipation 64 Energy Generation 14 Energy Capacity 265 Matter Stores 300 Matter Capacity 300 Sight Range 18 Terrain Scan Density 10 Armor Coverage 150 Resistance: EM 15 Evasion (%) 55 Target Analysis 5 Recoil Reduction 1 Particle Charging 15 Salvage Targeting 2 Item Schematics ----------------- None Robot Schematics ------------------ None Fabricated ------------ Nothing Alien Tech Used ----------------- None Achievements -------------- None Challenges ------------ None Game ------ Seed BiocellPulseReplicator Manual? 0 Play Time 00:24:09 Cumulative 90.0 hours Start 2022.06.24 @ 05:08:59 End 2022.06.24 @ 05:32:43 Sessions 1 Manual Loads 0 Difficulty Rogue Special Mode None Game No. 147 Rogue 101 Adventurer 45 Explorer 1 Win Type - Total 0 Types 0/0/0/0/0/0/0/0/0 Lore% 29 Gallery% 48 Achievement% 34 Wizard Run 0 Options --------- ASCII 0 Keyboard 0 Movement Mouse Keybinds 0 Fullscreen 2 Font 18/X11Bold Map View 76x50 Tactical HUD 1 Map Filters NONE Filters LOW_CONTRAST(13,24,33)|BRIGHTNESS(90)|SATURATION(87) Steam 1 RUN: 3b5d5792-73b8-41c7-ad7f-3c23694512dd